[Event "January 9 Early 2024"]
[Site "https://www.chess.com"]
[Date "2024.01.11"]
[Round "2"]
[White "Korchynskyi, Mykola"]
[Black "Sanal, Vahap"]
[Result "0-1"]
[Board "272"]
[TimeControl "180+1"]
[WhiteFideId "34138005"]
[BlackFideId "6300545"]
[WhiteElo "2613"]
[BlackElo "2934"]
[WhiteTeam "UKR"]
[BlackTeam "TUR"]
[WhiteClock "0:00:02"]
[BlackClock "0:00:07"]

1. d4 {[%clk 0:03:00]}  d6 {[%clk 0:02:59]} 2. c4 {[%clk 0:02:57]}  e5 {[%clk 0:02:58]} 3. Nc3 {[%clk 0:02:57]}  exd4 {[%clk 0:02:58]} 4. Qxd4 {[%clk 0:02:58]}  Nc6 {[%clk 0:02:58]} 5. Qd2 {[%clk 0:02:57]}  Nf6 {[%clk 0:02:58]} 6. e3 {[%clk 0:02:56]}  g6 {[%clk 0:02:53]} 7. b3 {[%clk 0:02:56]}  Bg7 {[%clk 0:02:50]} 8. Bb2 {[%clk 0:02:56]}  O-O {[%clk 0:02:48]} 9. Nf3 {[%clk 0:02:56]}  Be6 {[%clk 0:02:40]} 10. Be2 {[%clk 0:02:54]}  d5 {[%clk 0:02:35]} 11. cxd5 {[%clk 0:02:53]}  Nxd5 {[%clk 0:02:35]} 12. Nxd5 {[%clk 0:02:53]}  Qxd5 {[%clk 0:02:20]} 13. Bxg7 {[%clk 0:02:40]}  Qxd2+ {[%clk 0:02:11]} 14. Nxd2 {[%clk 0:02:41]}  Kxg7 {[%clk 0:02:12]} 15. Bc4 {[%clk 0:02:40]}  Kf6 {[%clk 0:01:54]} 16. Ne4+ {[%clk 0:02:26]}  Ke7 {[%clk 0:01:54]} 17. Bxe6 {[%clk 0:02:25]}  fxe6 {[%clk 0:01:54]} 18. Ke2 {[%clk 0:02:22]}  Rf5 {[%clk 0:01:37]} 19. Rad1 {[%clk 0:02:18]}  a5 {[%clk 0:01:26]} 20. Rd2 {[%clk 0:02:12]}  Re5 {[%clk 0:01:16]} 21. f3 {[%clk 0:02:06]}  Rd5 {[%clk 0:01:16]} 22. Rhd1 {[%clk 0:02:02]}  Nb4 {[%clk 0:01:16]} 23. a3 {[%clk 0:01:58]}  Rxd2+ {[%clk 0:01:15]} 24. Rxd2 {[%clk 0:01:59]}  Nd5 {[%clk 0:01:16]} 25. Rd4 {[%clk 0:01:26]}  Ra6 {[%clk 0:01:10]} 26. Nd2 {[%clk 0:01:24]}  Rc6 {[%clk 0:01:00]} 27. Nc4 {[%clk 0:01:14]}  Rc5 {[%clk 0:00:50]} 28. e4 {[%clk 0:01:09]}  Nf4+ {[%clk 0:00:45]} 29. Kf2 {[%clk 0:01:09]}  e5 {[%clk 0:00:41]} 30. Rd2 {[%clk 0:01:02]}  a4 {[%clk 0:00:41]} 31. Ke3 {[%clk 0:00:37]}  axb3 {[%clk 0:00:33]} 32. Nxe5 {[%clk 0:00:30]}  Nxg2+ {[%clk 0:00:17]} 33. Rxg2 {[%clk 0:00:30]}  Rxe5 {[%clk 0:00:18]} 34. Rb2 {[%clk 0:00:31]}  Rb5 {[%clk 0:00:17]} 35. Kd4 {[%clk 0:00:29]}  Ke6 {[%clk 0:00:18]} 36. Kc4 {[%clk 0:00:29]}  c6 {[%clk 0:00:18]} 37. Rxb3 {[%clk 0:00:23]}  Rxb3 {[%clk 0:00:17]} 38. Kxb3 {[%clk 0:00:23]}  Ke5 {[%clk 0:00:18]} 39. Kc4 {[%clk 0:00:22]}  b6 {[%clk 0:00:17]} 40. Kd3 {[%clk 0:00:18]}  g5 {[%clk 0:00:17]} 41. h3 {[%clk 0:00:10]}  b5 {[%clk 0:00:17]} 42. Ke3 {[%clk 0:00:09]}  c5 {[%clk 0:00:15]} 43. Kd3 {[%clk 0:00:10]}  Kf4 {[%clk 0:00:14]} 44. Kc3 {[%clk 0:00:09]}  h5 {[%clk 0:00:11]} 45. Kb3 {[%clk 0:00:08]}  h4 {[%clk 0:00:11]} 46. a4 {[%clk 0:00:06]}  bxa4+ {[%clk 0:00:09]} 47. Kxa4 {[%clk 0:00:06]}  Kxf3 {[%clk 0:00:10]} 48. e5 {[%clk 0:00:06]}  g4 {[%clk 0:00:10]} 49. e6 {[%clk 0:00:05]}  g3 {[%clk 0:00:09]} 50. e7 {[%clk 0:00:05]}  g2 {[%clk 0:00:09]} 51. e8=Q {[%clk 0:00:05]}  g1=Q {[%clk 0:00:10]} 52. Qf8+ {[%clk 0:00:05]}  Kg3 {[%clk 0:00:07]} 53. Qg7+ {[%clk 0:00:02]}  Kh2 {[%clk 0:00:07]} 0-1

[Event "January 9 Early 2024"]
[Site "https://www.chess.com"]
[Date "2024.01.11"]
[Round "2"]
[White "Shohat, Yotam"]
[Black "Samunenkov, Ihor"]
[Result "0-1"]
[Board "274"]
[TimeControl "180+1"]
[WhiteFideId "2813955"]
[BlackFideId "14187086"]
[WhiteElo "2412"]
[BlackElo "2756"]
[WhiteTeam "ISR"]
[BlackTeam "UKR"]
[WhiteClock "0:00:02"]
[BlackClock "0:00:04"]

1. e4 {[%clk 0:02:48]}  c6 {[%clk 0:02:59]} 2. d4 {[%clk 0:02:41]}  d5 {[%clk 0:03:00]} 3. exd5 {[%clk 0:02:42]}  cxd5 {[%clk 0:03:00]} 4. Bd3 {[%clk 0:02:43]}  Nc6 {[%clk 0:03:00]} 5. c3 {[%clk 0:02:43]}  Nf6 {[%clk 0:03:01]} 6. Bf4 {[%clk 0:02:42]}  Bg4 {[%clk 0:03:01]} 7. Qb3 {[%clk 0:02:22]}  Qd7 {[%clk 0:03:00]} 8. Nd2 {[%clk 0:02:11]}  e6 {[%clk 0:03:00]} 9. Ngf3 {[%clk 0:02:11]}  Bd6 {[%clk 0:03:00]} 10. Bxd6 {[%clk 0:02:11]}  Qxd6 {[%clk 0:03:01]} 11. O-O {[%clk 0:02:11]}  O-O {[%clk 0:03:01]} 12. Rfe1 {[%clk 0:02:09]}  Ne7 {[%clk 0:02:58]} 13. Ne5 {[%clk 0:01:59]}  Bf5 {[%clk 0:02:58]} 14. Bf1 {[%clk 0:01:57]}  Qc7 {[%clk 0:02:49]} 15. a4 {[%clk 0:01:47]}  Ne8 {[%clk 0:02:40]} 16. a5 {[%clk 0:01:40]}  Nd6 {[%clk 0:02:40]} 17. h3 {[%clk 0:01:33]}  Nc6 {[%clk 0:02:34]} 18. a6 {[%clk 0:01:18]}  b6 {[%clk 0:02:22]} 19. Nxc6 {[%clk 0:01:17]}  Qxc6 {[%clk 0:02:22]} 20. Nf3 {[%clk 0:01:17]}  Be4 {[%clk 0:02:07]} 21. Ne5 {[%clk 0:01:12]}  Qc7 {[%clk 0:02:07]} 22. Qb4 {[%clk 0:01:11]}  Rfd8 {[%clk 0:02:01]} 23. Rac1 {[%clk 0:00:55]}  Bg6 {[%clk 0:01:56]} 24. h4 {[%clk 0:00:49]}  Rac8 {[%clk 0:01:52]} 25. g3 {[%clk 0:00:48]}  Qe7 {[%clk 0:01:27]} 26. Qa4 {[%clk 0:00:40]}  Qe8 {[%clk 0:01:09]} 27. Qd1 {[%clk 0:00:39]}  Qe7 {[%clk 0:00:31]} 28. h5 {[%clk 0:00:37]}  Bf5 {[%clk 0:00:27]} 29. g4 {[%clk 0:00:32]}  Be4 {[%clk 0:00:25]} 30. f3 {[%clk 0:00:32]}  f6 {[%clk 0:00:24]} 31. fxe4 {[%clk 0:00:30]}  dxe4 {[%clk 0:00:23]} 32. Qe2 {[%clk 0:00:22]}  fxe5 {[%clk 0:00:23]} 33. dxe5 {[%clk 0:00:23]}  Nc4 {[%clk 0:00:22]} 34. Qxe4 {[%clk 0:00:22]}  Qc5+ {[%clk 0:00:22]} 35. Kh1 {[%clk 0:00:19]}  Nxb2 {[%clk 0:00:15]} 36. Re3 {[%clk 0:00:12]}  Nd1 {[%clk 0:00:12]} 37. Rf3 {[%clk 0:00:07]}  Nf2+ {[%clk 0:00:13]} 38. Rxf2 {[%clk 0:00:07]}  Qxf2 {[%clk 0:00:14]} 39. Bg2 {[%clk 0:00:07]}  Qd2 {[%clk 0:00:11]} 40. Rf1 {[%clk 0:00:07]}  Qxc3 {[%clk 0:00:10]} 41. h6 {[%clk 0:00:06]}  g6 {[%clk 0:00:06]} 42. Qb7 {[%clk 0:00:06]}  Qc7 {[%clk 0:00:05]} 43. Qf3 {[%clk 0:00:05]}  Rf8 {[%clk 0:00:05]} 44. Qe3 {[%clk 0:00:06]}  Rxf1+ {[%clk 0:00:06]} 45. Bxf1 {[%clk 0:00:07]}  Qc1 {[%clk 0:00:06]} 46. Qh3 {[%clk 0:00:01]}  Rf8 {[%clk 0:00:07]} 47. Kg1 {[%clk 0:00:02]}  Qc5+ {[%clk 0:00:03]} 48. Kh1 {[%clk 0:00:01]}  Qxe5 {[%clk 0:00:04]} 49. Qg2 {[%clk 0:00:02]}  Qd5 {[%clk 0:00:04]} 0-1

[Event "January 9 Early 2024"]
[Site "https://www.chess.com"]
[Date "2024.01.11"]
[Round "2"]
[White "Zilleruelo Irizarry, Diego"]
[Black "Urbina Perez, Juan Antonio"]
[Result "0-1"]
[Board "277"]
[TimeControl "180+1"]
[WhiteFideId "3101460"]
[BlackFideId "2217368"]
[WhiteElo "2307"]
[BlackElo "2526"]
[WhiteTeam "PUR"]
[BlackTeam "ESP"]
[WhiteClock "0:00:08"]
[BlackClock "0:00:33"]

1. e4 {[%clk 0:03:00]}  c6 {[%clk 0:02:59]} 2. d4 {[%clk 0:03:00]}  d5 {[%clk 0:03:00]} 3. exd5 {[%clk 0:03:01]}  cxd5 {[%clk 0:03:00]} 4. Bd3 {[%clk 0:03:01]}  Nf6 {[%clk 0:03:00]} 5. h3 {[%clk 0:03:01]}  Nc6 {[%clk 0:02:59]} 6. Nf3 {[%clk 0:03:01]}  Nb4 {[%clk 0:02:54]} 7. O-O {[%clk 0:03:00]}  Nxd3 {[%clk 0:02:45]} 8. Qxd3 {[%clk 0:03:01]}  e6 {[%clk 0:02:45]} 9. c3 {[%clk 0:02:59]}  Be7 {[%clk 0:02:45]} 10. Ne5 {[%clk 0:02:58]}  O-O {[%clk 0:02:37]} 11. Bg5 {[%clk 0:02:58]}  Nd7 {[%clk 0:02:35]} 12. Bxe7 {[%clk 0:02:54]}  Qxe7 {[%clk 0:02:35]} 13. Nxd7 {[%clk 0:02:54]}  Bxd7 {[%clk 0:02:33]} 14. Nd2 {[%clk 0:02:55]}  a6 {[%clk 0:02:32]} 15. Rfe1 {[%clk 0:02:54]}  b5 {[%clk 0:02:28]} 16. Nf3 {[%clk 0:02:50]}  f6 {[%clk 0:02:27]} 17. Re3 {[%clk 0:02:40]}  Rfc8 {[%clk 0:02:26]} 18. Rae1 {[%clk 0:02:40]}  b4 {[%clk 0:02:25]} 19. Nh4 {[%clk 0:02:31]}  bxc3 {[%clk 0:02:22]} 20. bxc3 {[%clk 0:02:32]}  Qa3 {[%clk 0:02:15]} 21. Qd2 {[%clk 0:02:27]}  Rab8 {[%clk 0:02:13]} 22. R1e2 {[%clk 0:02:24]}  Rb1+ {[%clk 0:02:09]} 23. Kh2 {[%clk 0:02:24]}  Qc1 {[%clk 0:02:10]} 24. f4 {[%clk 0:02:16]}  g6 {[%clk 0:02:01]} 25. Kg3 {[%clk 0:01:00]}  Qxd2 {[%clk 0:01:52]} 26. Rxd2 {[%clk 0:01:00]}  Rc1 {[%clk 0:01:53]} 27. Rdd3 {[%clk 0:00:57]}  Kf7 {[%clk 0:01:53]} 28. Kf3 {[%clk 0:00:54]}  Bb5 {[%clk 0:01:53]} 29. Rd2 {[%clk 0:00:53]}  R1xc3 {[%clk 0:01:53]} 30. Rxc3 {[%clk 0:00:46]}  Rxc3+ {[%clk 0:01:53]} 31. Kf2 {[%clk 0:00:46]}  Bc4 {[%clk 0:01:50]} 32. Rb2 {[%clk 0:00:44]}  Bb5 {[%clk 0:01:49]} 33. Nf3 {[%clk 0:00:43]}  Ra3 {[%clk 0:01:44]} 34. g4 {[%clk 0:00:39]}  h6 {[%clk 0:01:44]} 35. g5 {[%clk 0:00:39]}  hxg5 {[%clk 0:01:45]} 36. fxg5 {[%clk 0:00:39]}  fxg5 {[%clk 0:01:41]} 37. Nxg5+ {[%clk 0:00:37]}  Kf6 {[%clk 0:01:42]} 38. Nf3 {[%clk 0:00:38]}  Bc4 {[%clk 0:01:39]} 39. Rb7 {[%clk 0:00:31]}  Rxa2+ {[%clk 0:01:39]} 40. Kg3 {[%clk 0:00:31]}  Ra3 {[%clk 0:01:39]} 41. Kf2 {[%clk 0:00:31]}  Rb3 {[%clk 0:01:36]} 42. Ra7 {[%clk 0:00:29]}  Kf5 {[%clk 0:01:27]} 43. Rf7+ {[%clk 0:00:29]}  Ke4 {[%clk 0:01:26]} 44. Nd2+ {[%clk 0:00:30]}  Kxd4 {[%clk 0:01:25]} 45. Nxb3+ {[%clk 0:00:30]}  Bxb3 {[%clk 0:01:26]} 46. Rf6 {[%clk 0:00:30]}  Ke5 {[%clk 0:01:25]} 47. Rxg6 {[%clk 0:00:30]}  a5 {[%clk 0:01:24]} 48. Ke3 {[%clk 0:00:28]}  a4 {[%clk 0:01:24]} 49. Kd2 {[%clk 0:00:28]}  Kf5 {[%clk 0:01:15]} 50. Rg3 {[%clk 0:00:25]}  e5 {[%clk 0:01:14]} 51. h4 {[%clk 0:00:24]}  Kf4 {[%clk 0:01:13]} 52. Rg7 {[%clk 0:00:23]}  e4 {[%clk 0:01:13]} 53. h5 {[%clk 0:00:23]}  e3+ {[%clk 0:01:13]} 54. Kd3 {[%clk 0:00:20]}  Bc4+ {[%clk 0:01:10]} 55. Kc3 {[%clk 0:00:19]}  e2 {[%clk 0:01:04]} 56. Re7 {[%clk 0:00:19]}  a3 {[%clk 0:00:46]} 57. h6 {[%clk 0:00:19]}  a2 {[%clk 0:00:47]} 58. Kb2 {[%clk 0:00:18]}  Bd3 {[%clk 0:00:46]} 59. Kxa2 {[%clk 0:00:16]}  Be4 {[%clk 0:00:46]} 60. Kb2 {[%clk 0:00:16]}  e1=Q {[%clk 0:00:45]} 61. h7 {[%clk 0:00:13]}  Qb4+ {[%clk 0:00:43]} 62. Kc1 {[%clk 0:00:13]}  Qxe7 {[%clk 0:00:41]} 63. h8=Q {[%clk 0:00:12]}  Qc5+ {[%clk 0:00:42]} 64. Kb2 {[%clk 0:00:09]}  Qc2+ {[%clk 0:00:41]} 65. Ka3 {[%clk 0:00:10]}  Qd3+ {[%clk 0:00:40]} 66. Kb2 {[%clk 0:00:10]}  Ke3 {[%clk 0:00:37]} 67. Qh3+ {[%clk 0:00:09]}  Kd4 {[%clk 0:00:37]} 68. Qh8+ {[%clk 0:00:10]}  Kc4 {[%clk 0:00:35]} 69. Qc8+ {[%clk 0:00:10]}  Kb4 {[%clk 0:00:35]} 70. Qb7+ {[%clk 0:00:09]}  Qb5 {[%clk 0:00:34]} 71. Qe7+ {[%clk 0:00:08]}  Kc4+ {[%clk 0:00:35]} 72. Ka2 {[%clk 0:00:08]}  Qb1+ {[%clk 0:00:32]} 73. Ka3 {[%clk 0:00:08]}  Qb3# {[%clk 0:00:33]} 0-1

[Event "January 9 Early 2024"]
[Site "https://www.chess.com"]
[Date "2024.01.11"]
[Round "2"]
[White "Herman, Matthew"]
[Black "Petrukhina, Olga"]
[Result "1-0"]
[Board "278"]
[TimeControl "180+1"]
[WhiteFideId "2028964"]
[BlackFideId "13703935"]
[WhiteElo "2522"]
[BlackElo "2294"]
[WhiteTeam "USA"]
[BlackTeam "KAZ"]
[WhiteClock "0:00:09"]
[BlackClock "0:00:08"]

1. e4 {[%clk 0:02:58]}  e6 {[%clk 0:03:00]} 2. d4 {[%clk 0:02:58]}  d5 {[%clk 0:03:01]} 3. Nd2 {[%clk 0:02:59]}  c5 {[%clk 0:03:00]} 4. Ngf3 {[%clk 0:02:58]}  cxd4 {[%clk 0:02:59]} 5. exd5 {[%clk 0:02:58]}  Qxd5 {[%clk 0:02:58]} 6. Bc4 {[%clk 0:02:58]}  Qd6 {[%clk 0:02:58]} 7. O-O {[%clk 0:02:59]}  Nf6 {[%clk 0:02:58]} 8. Re1 {[%clk 0:02:59]}  Nc6 {[%clk 0:02:57]} 9. Ne4 {[%clk 0:02:59]}  Nxe4 {[%clk 0:02:56]} 10. Rxe4 {[%clk 0:03:00]}  Qc5 {[%clk 0:02:44]} 11. b3 {[%clk 0:02:49]}  Be7 {[%clk 0:02:38]} 12. Bf4 {[%clk 0:02:08]}  Bf6 {[%clk 0:02:12]} 13. c3 {[%clk 0:01:29]}  dxc3 {[%clk 0:01:37]} 14. Bd6 {[%clk 0:01:28]}  Qf5 {[%clk 0:01:37]} 15. Qe2 {[%clk 0:01:20]}  Bd7 {[%clk 0:01:21]} 16. Rc1 {[%clk 0:01:03]}  Be7 {[%clk 0:00:49]} 17. Bxe7 {[%clk 0:00:58]}  Kxe7 {[%clk 0:00:46]} 18. Rxc3 {[%clk 0:00:52]}  Rhd8 {[%clk 0:00:43]} 19. g4 {[%clk 0:00:27]}  Qf6 {[%clk 0:00:38]} 20. Rce3 {[%clk 0:00:23]}  Kf8 {[%clk 0:00:35]} 21. g5 {[%clk 0:00:18]}  Qa1+ {[%clk 0:00:24]} 22. Kg2 {[%clk 0:00:18]}  Kg8 {[%clk 0:00:23]} 23. Rh4 {[%clk 0:00:17]}  g6 {[%clk 0:00:17]} 24. Bd3 {[%clk 0:00:14]}  Ne7 {[%clk 0:00:13]} 25. Ne5 {[%clk 0:00:13]}  Nf5 {[%clk 0:00:12]} 26. Bxf5 {[%clk 0:00:11]}  exf5 {[%clk 0:00:13]} 27. Reh3 {[%clk 0:00:09]}  Bc6+ {[%clk 0:00:09]} 28. Nxc6 {[%clk 0:00:09]}  bxc6 {[%clk 0:00:10]} 29. Rxh7 {[%clk 0:00:09]}  Qd4 {[%clk 0:00:08]} 30. Qe3 {[%clk 0:00:07]}  Qd5+ {[%clk 0:00:07]} 31. Kg3 {[%clk 0:00:03]}  Qd6+ {[%clk 0:00:07]} 32. Qf4 {[%clk 0:00:03]}  Qxf4+ {[%clk 0:00:07]} 33. Kxf4 {[%clk 0:00:04]}  Kf8 {[%clk 0:00:07]} 34. Rh8+ {[%clk 0:00:04]}  Ke7 {[%clk 0:00:07]} 35. Re3+ {[%clk 0:00:04]}  Kd7 {[%clk 0:00:06]} 36. Rd3+ {[%clk 0:00:05]}  Kc7 {[%clk 0:00:06]} 37. Rdxd8 {[%clk 0:00:06]}  Rxd8 {[%clk 0:00:07]} 38. Rxd8 {[%clk 0:00:06]}  Kxd8 {[%clk 0:00:08]} 39. Ke5 {[%clk 0:00:07]}  Ke7 {[%clk 0:00:07]} 40. b4 {[%clk 0:00:07]}  a6 {[%clk 0:00:05]} 41. h4 {[%clk 0:00:06]}  Kd7 {[%clk 0:00:05]} 42. Kf6 {[%clk 0:00:06]}  Ke8 {[%clk 0:00:05]} 43. a4 {[%clk 0:00:06]}  Kf8 {[%clk 0:00:05]} 44. f4 {[%clk 0:00:06]}  Ke8 {[%clk 0:00:05]} 45. h5 {[%clk 0:00:04]}  gxh5 {[%clk 0:00:05]} 46. Kxf5 {[%clk 0:00:04]}  Ke7 {[%clk 0:00:05]} 47. Ke4 {[%clk 0:00:03]}  Ke6 {[%clk 0:00:04]} 48. f5+ {[%clk 0:00:03]}  Kd6 {[%clk 0:00:04]} 49. Kf4 {[%clk 0:00:04]}  Kd5 {[%clk 0:00:04]} 50. g6 {[%clk 0:00:03]}  fxg6 {[%clk 0:00:05]} 51. fxg6 {[%clk 0:00:02]}  Ke6 {[%clk 0:00:05]} 52. Kg5 {[%clk 0:00:03]}  Ke7 {[%clk 0:00:05]} 53. Kxh5 {[%clk 0:00:03]}  Kf8 {[%clk 0:00:05]} 54. Kh6 {[%clk 0:00:04]}  Kg8 {[%clk 0:00:06]} 55. Kg5 {[%clk 0:00:05]}  Kg7 {[%clk 0:00:06]} 56. Kf5 {[%clk 0:00:06]}  Kg8 {[%clk 0:00:06]} 57. Ke5 {[%clk 0:00:07]}  Kg7 {[%clk 0:00:07]} 58. Kd6 {[%clk 0:00:07]}  Kxg6 {[%clk 0:00:07]} 59. Kxc6 {[%clk 0:00:08]}  Kf6 {[%clk 0:00:08]} 60. Kb6 {[%clk 0:00:09]} 1-0

[Event "January 9 Early 2024"]
[Site "https://www.chess.com"]
[Date "2024.01.11"]
[Round "2"]
[White "Santos Latasa, Jaime"]
[Black "Rangel, Daniel"]
[Result "1/2-1/2"]
[Board "281"]
[TimeControl "180+1"]
[WhiteFideId "2293307"]
[BlackFideId "2124475"]
[WhiteElo "2911"]
[BlackElo "2506"]
[WhiteTeam "ESP"]
[BlackTeam "BRA"]
[WhiteClock "0:00:21"]
[BlackClock "0:00:10"]

1. Nf3 {[%clk 0:03:00]}  Nf6 {[%clk 0:02:59]} 2. b3 {[%clk 0:03:01]}  g6 {[%clk 0:02:59]} 3. Bb2 {[%clk 0:03:02]}  Bg7 {[%clk 0:02:59]} 4. d4 {[%clk 0:03:02]}  O-O {[%clk 0:03:00]} 5. e3 {[%clk 0:03:03]}  d5 {[%clk 0:02:55]} 6. Be2 {[%clk 0:03:03]}  c5 {[%clk 0:02:55]} 7. O-O {[%clk 0:03:03]}  Nc6 {[%clk 0:02:54]} 8. dxc5 {[%clk 0:03:04]}  Qa5 {[%clk 0:02:52]} 9. a3 {[%clk 0:03:01]}  Qxc5 {[%clk 0:02:49]} 10. b4 {[%clk 0:03:02]}  Qd6 {[%clk 0:02:49]} 11. c4 {[%clk 0:03:01]}  dxc4 {[%clk 0:02:43]} 12. Nbd2 {[%clk 0:02:51]}  b5 {[%clk 0:02:18]} 13. a4 {[%clk 0:02:49]}  Qxb4 {[%clk 0:02:10]} 14. axb5 {[%clk 0:02:33]}  Qxb2 {[%clk 0:02:03]} 15. Rb1 {[%clk 0:02:33]}  Qa3 {[%clk 0:01:55]} 16. Nxc4 {[%clk 0:02:29]}  Qc5 {[%clk 0:01:51]} 17. bxc6 {[%clk 0:02:29]}  Qxc6 {[%clk 0:01:49]} 18. Nfe5 {[%clk 0:02:28]}  Qc7 {[%clk 0:01:46]} 19. Bf3 {[%clk 0:02:27]}  Rb8 {[%clk 0:01:38]} 20. Rxb8 {[%clk 0:02:24]}  Qxb8 {[%clk 0:01:38]} 21. Qa4 {[%clk 0:02:23]}  Be6 {[%clk 0:01:32]} 22. Nc6 {[%clk 0:02:07]}  Qc7 {[%clk 0:01:30]} 23. N4e5 {[%clk 0:02:06]}  Nd5 {[%clk 0:01:18]} 24. Bxd5 {[%clk 0:01:22]}  Bxd5 {[%clk 0:01:15]} 25. f4 {[%clk 0:01:22]}  f6 {[%clk 0:00:40]} 26. e4 {[%clk 0:01:21]}  fxe5 {[%clk 0:00:27]} 27. exd5 {[%clk 0:01:21]}  exf4 {[%clk 0:00:28]} 28. Re1 {[%clk 0:01:17]}  f3 {[%clk 0:00:24]} 29. gxf3 {[%clk 0:01:16]}  Qb6+ {[%clk 0:00:21]} 30. Kg2 {[%clk 0:01:13]}  Qb2+ {[%clk 0:00:21]} 31. Kg3 {[%clk 0:01:12]}  Qf6 {[%clk 0:00:14]} 32. Qg4 {[%clk 0:01:08]}  Qd6+ {[%clk 0:00:12]} 33. Kg2 {[%clk 0:01:08]}  Kh8 {[%clk 0:00:11]} 34. Nxe7 {[%clk 0:01:03]}  Qc5 {[%clk 0:00:09]} 35. Qe4 {[%clk 0:01:00]}  a5 {[%clk 0:00:06]} 36. Qe6 {[%clk 0:00:59]}  a4 {[%clk 0:00:04]} 37. d6 {[%clk 0:00:59]}  a3 {[%clk 0:00:03]} 38. Re2 {[%clk 0:00:55]}  Qg5+ {[%clk 0:00:03]} 39. Kh1 {[%clk 0:00:49]}  Qc1+ {[%clk 0:00:03]} 40. Kg2 {[%clk 0:00:46]}  Qg5+ {[%clk 0:00:04]} 41. Kh1 {[%clk 0:00:47]}  Qc1+ {[%clk 0:00:04]} 42. Re1 {[%clk 0:00:47]}  Qc3 {[%clk 0:00:03]} 43. Rf1 {[%clk 0:00:44]}  Qb2 {[%clk 0:00:03]} 44. d7 {[%clk 0:00:36]}  a2 {[%clk 0:00:03]} 45. Qa6 {[%clk 0:00:27]}  Rd8 {[%clk 0:00:01]} 46. Nc6 {[%clk 0:00:26]}  Rf8 {[%clk 0:00:01]} 47. d8=Q {[%clk 0:00:26]}  Rxd8 {[%clk 0:00:01]} 48. Nxd8 {[%clk 0:00:26]}  a1=Q {[%clk 0:00:02]} 49. Rxa1 {[%clk 0:00:17]}  Qxa1+ {[%clk 0:00:03]} 50. Qxa1 {[%clk 0:00:17]}  Bxa1 {[%clk 0:00:04]} 51. Nf7+ {[%clk 0:00:17]}  Kg7 {[%clk 0:00:05]} 52. Ng5 {[%clk 0:00:18]}  h6 {[%clk 0:00:05]} 53. Ne4 {[%clk 0:00:19]}  Be5 {[%clk 0:00:05]} 54. Kg2 {[%clk 0:00:20]}  Bf6 {[%clk 0:00:05]} 55. h3 {[%clk 0:00:21]}  Be5 {[%clk 0:00:05]} 56. Kf2 {[%clk 0:00:21]}  Bf4 {[%clk 0:00:06]} 57. Ke2 {[%clk 0:00:20]}  g5 {[%clk 0:00:07]} 58. Nf2 {[%clk 0:00:20]}  Kg6 {[%clk 0:00:07]} 59. Kd3 {[%clk 0:00:21]}  h5 {[%clk 0:00:07]} 60. Ke4 {[%clk 0:00:21]}  Bg3 {[%clk 0:00:08]} 61. Nd3 {[%clk 0:00:20]}  Bb8 {[%clk 0:00:08]} 62. Ne5+ {[%clk 0:00:20]}  Bxe5 {[%clk 0:00:07]} 63. Kxe5 {[%clk 0:00:21]}  g4 {[%clk 0:00:08]} 64. fxg4 {[%clk 0:00:21]}  hxg4 {[%clk 0:00:09]} 65. hxg4 {[%clk 0:00:21]}  Kg5 {[%clk 0:00:09]} 66. Ke4 {[%clk 0:00:21]}  Kxg4 {[%clk 0:00:10]} 1/2-1/2

[Event "January 9 Early 2024"]
[Site "https://www.chess.com"]
[Date "2024.01.11"]
[Round "2"]
[White "Martin Duque, Jesus"]
[Black "Parpiev, Isaak"]
[Result "1-0"]
[Board "283"]
[TimeControl "180+1"]
[WhiteFideId "2208954"]
[BlackFideId "34281576"]
[WhiteElo "2397"]
[BlackElo "2680"]
[WhiteTeam "ESP"]
[BlackTeam "RUS"]
[WhiteClock "0:00:21"]
[BlackClock "0:00:01"]

1. Nf3 {[%clk 0:03:00]}  d5 {[%clk 0:02:58]} 2. b3 {[%clk 0:02:59]}  Bg4 {[%clk 0:02:58]} 3. e3 {[%clk 0:02:59]}  Nd7 {[%clk 0:02:58]} 4. Bb2 {[%clk 0:02:59]}  e5 {[%clk 0:02:55]} 5. h3 {[%clk 0:02:58]}  Bxf3 {[%clk 0:02:55]} 6. Qxf3 {[%clk 0:02:57]}  c6 {[%clk 0:02:56]} 7. g4 {[%clk 0:02:55]}  Bd6 {[%clk 0:02:55]} 8. Nc3 {[%clk 0:02:51]}  Ne7 {[%clk 0:02:51]} 9. h4 {[%clk 0:02:50]}  e4 {[%clk 0:02:46]} 10. Qg2 {[%clk 0:02:49]}  Ng6 {[%clk 0:02:39]} 11. g5 {[%clk 0:02:43]}  h5 {[%clk 0:02:37]} 12. gxh6 {[%clk 0:02:32]}  Rxh6 {[%clk 0:02:23]} 13. h5 {[%clk 0:02:26]}  Nh4 {[%clk 0:02:22]} 14. Qxg7 {[%clk 0:02:24]}  Rxh5 {[%clk 0:02:16]} 15. O-O-O {[%clk 0:02:12]}  Be5 {[%clk 0:02:00]} 16. Qg8+ {[%clk 0:02:00]}  Nf8 {[%clk 0:01:44]} 17. Be2 {[%clk 0:01:49]}  Rh8 {[%clk 0:01:43]} 18. Qg4 {[%clk 0:01:44]}  f5 {[%clk 0:01:37]} 19. Qh3 {[%clk 0:01:37]}  Qf6 {[%clk 0:01:35]} 20. d4 {[%clk 0:01:27]}  exd3 {[%clk 0:01:28]} 21. Rxd3 {[%clk 0:01:26]}  O-O-O {[%clk 0:01:24]} 22. f4 {[%clk 0:01:26]}  Nhg6 {[%clk 0:01:19]} 23. Qg2 {[%clk 0:01:24]}  Rxh1+ {[%clk 0:00:49]} 24. Qxh1 {[%clk 0:01:23]}  Bxc3 {[%clk 0:00:50]} 25. Bxc3 {[%clk 0:01:24]}  Qe6 {[%clk 0:00:49]} 26. Qh6 {[%clk 0:01:09]}  Rd7 {[%clk 0:00:39]} 27. Kb2 {[%clk 0:01:01]}  Rd8 {[%clk 0:00:37]} 28. Bh5 {[%clk 0:00:59]}  b6 {[%clk 0:00:22]} 29. Bg7 {[%clk 0:00:56]}  Kd7 {[%clk 0:00:13]} 30. Rd2 {[%clk 0:00:29]}  Qxe3 {[%clk 0:00:04]} 31. Re2 {[%clk 0:00:29]}  Qxf4 {[%clk 0:00:04]} 32. Bxf8 {[%clk 0:00:26]}  Qxh6 {[%clk 0:00:02]} 33. Bxh6 {[%clk 0:00:25]}  Nh8 {[%clk 0:00:01]} 34. Bg7 {[%clk 0:00:23]}  Rg8 {[%clk 0:00:02]} 35. Bxh8 {[%clk 0:00:23]}  Rxh8 {[%clk 0:00:03]} 36. Bg6 {[%clk 0:00:22]}  Rf8 {[%clk 0:00:03]} 37. Re5 {[%clk 0:00:22]}  f4 {[%clk 0:00:02]} 38. Rf5 {[%clk 0:00:22]}  Rg8 {[%clk 0:00:01]} 39. Bf7 {[%clk 0:00:20]}  Rf8 {[%clk 0:00:02]} 40. Be6+ {[%clk 0:00:19]}  Ke7 {[%clk 0:00:02]} 41. Rxf8 {[%clk 0:00:19]}  Kxf8 {[%clk 0:00:03]} 42. Kc3 {[%clk 0:00:20]}  Ke7 {[%clk 0:00:03]} 43. Bg4 {[%clk 0:00:20]}  Kd6 {[%clk 0:00:04]} 44. Kd4 {[%clk 0:00:20]}  c5+ {[%clk 0:00:04]} 45. Kd3 {[%clk 0:00:21]}  Ke5 {[%clk 0:00:05]} 46. c4 {[%clk 0:00:21]}  d4 {[%clk 0:00:03]} 47. Bf3 {[%clk 0:00:21]}  Kf5 {[%clk 0:00:04]} 48. a3 {[%clk 0:00:20]}  a5 {[%clk 0:00:04]} 49. Ke2 {[%clk 0:00:19]}  Ke5 {[%clk 0:00:04]} 50. Kd3 {[%clk 0:00:20]}  Kf5 {[%clk 0:00:05]} 51. Be4+ {[%clk 0:00:20]}  Kg4 {[%clk 0:00:02]} 52. Ke2 {[%clk 0:00:20]}  Kg3 {[%clk 0:00:02]} 53. Bd5 {[%clk 0:00:20]}  Kg4 {[%clk 0:00:01]} 54. Kf2 {[%clk 0:00:21]}  Kf5 {[%clk 0:00:02]} 55. Kf3 {[%clk 0:00:21]}  Ke5 {[%clk 0:00:02]} 56. Be4 {[%clk 0:00:22]}  b5 {[%clk 0:00:01]} 57. cxb5 {[%clk 0:00:21]}  a4 {[%clk 0:00:02]} 58. b6 {[%clk 0:00:20]}  Kd6 {[%clk 0:00:03]} 59. b7 {[%clk 0:00:20]}  Kc7 {[%clk 0:00:03]} 60. bxa4 {[%clk 0:00:20]}  c4 {[%clk 0:00:03]} 61. Kxf4 {[%clk 0:00:21]}  d3 {[%clk 0:00:02]} 62. Ke3 {[%clk 0:00:21]}  c3 {[%clk 0:00:01]} 63. Kxd3 {[%clk 0:00:21]} 1-0